Cogmind - Beta 16.1 @@@ ROGUE MODE // 2026.04.08 @ 13:07:05 Player: WarMechanic Result: Destroyed by P-60 Hacker with Shock Rifle Performance ------------- Evolutions (3) 1500 Regions Visited (7) 1400 Robots Destroyed (121) 605 Value Destroyed (3540) 3540 Prototype IDs (4) 80 Alien Tech Used (0) 0 Bonus (704) 704 TOTAL SCORE: 7829 Bonus ------- High Alert Combat Kills 4 Entered Garrisons 200 Used RIF Installer 500 Cogmind --------- Core Integrity 0/700 Matter 220/300 Energy 100/100 System Corruption 11% Temperature Cool (0) Movement Core (50) Location -7/Factory Parts ------- > --- POWER (2) -------- (None) > --- PROPULSION (4) --- (None) > --- UTILITY (5) ------ (None) > --- WEAPON (2) ------- (None) > --- INVENTORY (5) ---- High-capacity Storage Unit High-capacity Matter Pod (200) Machine Analyzer Advanced ECM Suite Chainsword Peak State ------------ > --- POWER ------------ Improved Deuterium Engine Micro Nuclear Core > --- PROPULSION ------- Light Treads Light Treads Armored Huge Wheel > --- UTILITY ---------- High-capacity Storage Unit Improved Sensor Array Advanced ECM Suite Improved Weapon Shielding Hardened Medium Armor Plating > --- WEAPON ----------- Blade Saw Chainsword > --- INVENTORY -------- Reinforced Ion Engine Light Treads Compact Wheel Compact Wheel High-capacity Matter Pod Machine Analyzer Improved Melee Analysis Suite Improved Utility Shielding Hacking Suite Hacking Suite System Shield Relay Coupler [NC] Improved EM Shotgun Arc Projector EMP Blaster Shock Bomb Launcher Improved Datajack Blade Saw Chainsword Chainsword [Rating: 44] Favorites ----------- Power Heavy Ion Engine Engine Heavy Ion Engine Power Core Micro Nuclear Core Propulsion Light Treads Treads Light Treads Wheel Armored Huge Wheel Utility High-capacity Storage Unit Device Seismic Detector Storage High-capacity Storage Unit Processor Transport Network Coupler Hackware Hacking Suite Protection Light Armor Plating Weapon Chainsword Energy Gun Improved EM Shotgun Ballistic Gun Assault Rifle Launcher EMP Blaster Impact Weapon Hammer Slashing Weapon Chainsword Special Melee Weapon Datajack Build | -11 -10 -9 -9 -8 -8 -8 -7 ------- Run | Yrd Mat Mat Min Mat Gar Mat Fac Slots Evolved 6 | . . 2 . 2 . . 2 Power 1 | . . . . . . . 1 Propulsion 2 | . . 1 . 1 . . . Utility 3 | . . 1 . 1 . . 1 Weapon . | . . . . . . . . Parts Attached 94 | 7 8 12 2 21 6 17 21 Power 12 | 1 2 1 . 2 . . 6 Engine 11 | 1 2 1 . 2 . . 5 Core 1 | . . . . . . . 1 Reactor . | . . . . . . . . Propulsion 31 | 2 . 5 1 6 1 9 7 Treads 24 | 1 . 4 1 4 1 8 5 Leg . | . . . . . . . . Wheel 7 | 1 . 1 . 2 . 1 2 Hover . | . . . . . . . . Flight . | . . . . . . . . Utility 31 | 2 3 3 1 7 5 5 5 Device 14 | 1 2 1 1 5 . 2 2 Storage 6 | 1 1 2 . 1 . . 1 Processor 1 | . . . . 1 . . . Hackware 1 | . . . . . . . 1 Protection 9 | . . . . . 5 3 1 Artifact . | . . . . . . . . Weapon 20 | 2 3 3 . 6 . 3 3 Energy Gun 5 | . 1 2 . 2 . . . Energy Cannon . | . . . . . . . . Ballistic Gun 2 | 2 . . . . . . . Ballistic Cannon . | . . . . . . . . Launcher 3 | . . 1 . . . 1 1 Special Weapon . | . . . . . . . . Impact Weapon 1 | . 1 . . . . . . Slashing Weapon 7 | . . . . 4 . 2 1 Piercing Weapon . | . . . . . . . . Special Melee Weapon 2 | . 1 . . . . . 1 Unidentified Prototypes 4 | . . 3 . 1 . . . Parts Lost 25 | . 2 . . 4 . 5 14 Power 4 | . . . . 1 . . 3 Propulsion 7 | . . . . . . 1 6 Utility 10 | . 1 . . 2 . 4 3 Weapon 4 | . 1 . . 1 . . 2 Highest Loss Streak 14 | . 2 . . 4 . 1 14 To Critical Strikes . | . . . . . . . . Average Backups 18 | 4 13 18 19 19 19 19 18 Power 1 | . 1 1 2 2 2 2 1 Propulsion 2 | 1 3 2 2 2 2 1 2 Utility 7 | . 6 7 8 7 6 6 7 Weapon 5 | 1 1 5 6 6 7 7 6 Tool/Special . | . . . . . . . . Unused Backups 38 | 1 8 7 1 5 5 1 10 Power 5 | . 3 1 . . 1 . . Propulsion 5 | 1 . 1 . 2 . . 1 Utility 17 | . 3 2 1 1 3 1 6 Weapon 11 | . 2 3 . 2 1 . 3 Tool/Special . | . . . . . . . . Average Slot Usage (%) 92 | . 99 99 100 83 90 90 86 Engine 10 | . 14 11 11 8 9 9 12 Treads 16 | . 14 22 22 8 18 19 14 Wheel 11 | . 14 11 11 14 9 9 6 Device 19 | . 13 21 22 25 9 17 13 Storage 10 | . 14 11 11 9 9 9 6 Protection 3 | . . . . . 17 8 13 Energy Gun 4 | . 1 10 11 6 . 1 . Ballistic Gun 2 | . 14 . . . . . . Impact Weapon 5 | . 10 11 11 2 . . . Slashing Weapon 6 | . . . . 7 18 16 12 Peak Build Rating 44 | 8 8 17 18 36 33 35 44 Average Rating 22 | 6 7 15 18 30 31 32 38 On Entrance 18 | . 8 8 16 18 33 31 35 Avg Prop Armor Cover (%) 18 | 10 13 20 21 23 14 17 14 Naked Turns 64 | . . . . . . . 64 Heaviest Build 80 | 12 30 56 55 60 65 65 80 Greatest Support 56 | 20 16 16 16 56 28 28 28 Greatest Overweight (x) 18 | . 1 3 3 18 2 4 4 Average Overweight (x) 1 | . . 2 3 1 2 2 1 Largest Inventory Capacity 20 | 8 15 20 20 20 20 20 20 Average Capacity 18 | 7 13 18 20 20 20 20 19 Most Carried 20 | 8 15 20 20 20 20 20 20 Average Carried 18 | 4 13 18 19 19 19 19 18 Final Capacity 20 | 8 15 20 20 20 20 20 5 Final Carried 20 | 8 15 20 20 20 20 20 5 Class Distribution -------------------- 88% | Mutant 11% | Scavenger-Mutant Dominant Class ---------------- Mutant | -10/Materials Mutant | -9/Materials Scavenger-Mutant | -9/Mines Mutant | -8/Materials Mutant | -8/Garrison Mutant | -8/Materials Scavenger-Mutant | -7/Factory Resources | -11 -10 -9 -9 -8 -8 -8 -7 ----------- Run | Yrd Mat Mat Min Mat Gar Mat Fac Matter Collected 1823 | 402 121 167 166 345 89 348 185 Remotely . | . . . . . . . . Salvage Created 5397 | 237 452 601 17 1021 526 1700 843 Parts 270 | 18 21 29 . 45 33 89 35 Haulers Intercepted 12 | . 2 4 . 3 . 3 . Recyclers Shooed 4 | . . 2 . . . . 2 Parts Field Recycled . | . . . . . . . . Retrieved Matter . | . . . . . . . . Parts Self-Destructed . | . . . . . . . . Prevented . | . . . . . . . . Parts Restored . | . . . . . . . . Kills | -11 -10 -9 -9 -8 -8 -8 -7 ------- Run | Yrd Mat Mat Min Mat Gar Mat Fac Combat Hostiles Destroyed 75 | . 10 8 . 14 12 23 8 Melee 49 | . 3 . . 9 12 17 8 Guns 10 | . 4 4 . 1 . 1 . AOE 10 | . . 3 . 2 . 5 . Classes Destroyed 15 | 3 4 1 . 1 2 3 1 Worker 7 | 2 . . . 2 . 3 . Builder 1 | . . . . . . 1 . Tunneler 5 | 4 . . 1 . . . . Hauler 12 | . 2 4 . 3 . 3 . Recycler 14 | 1 . 2 . 3 . 4 4 Mechanic 4 | . 1 . . 1 . 1 1 Operator 1 | . . . . . . 1 . Watcher 2 | . . . . . . 2 . Swarmer 15 | . 3 4 . 3 . 5 . Cutter 3 | . . . . . 3 . . Grunt 33 | . 7 2 . 6 5 11 2 Brawler 3 | . . . . . 2 . 1 Sentry 17 | . . 2 . 4 2 7 2 Hunter 3 | . . . . 1 . . 2 Programmer 1 | . . . . . . . 1 Best Kill Streak 6 | 3 3 5 1 6 3 6 5 Combat Bots Only 5 | . 3 4 . 3 3 5 4 Max Kills in Single Turn 2 | 1 1 1 1 2 1 1 1 Gunslinging . | . . . . . . . . Exploded 2 | . . 1 . 2 . 1 . Melee 1 | . 1 . . 1 1 1 1 Uniques/NPCs Destroyed . | . . . . . . . . Combat | -11 -10 -9 -9 -8 -8 -8 -7 -------- Run | Yrd Mat Mat Min Mat Gar Mat Fac Hostile Shots Fired 608 | . 49 33 . 82 60 132 252 Missed 187 | . 9 13 . 25 22 33 85 Hits 421 | . 40 20 . 57 38 99 167 Melee 11 | . . . . . 10 . 1 Projectile 410 | . 40 20 . 57 28 99 166 Critical Strikes 17 | . . 1 . 2 2 6 6 Part Disruptions 1 | . . . . . . 1 . Damage Taken 6326 | . 417 320 . 836 649 1674 2430 Core 1272 | . 90 77 . 180 32 189 704 Absorbed by Shields . | . . . . . . . . Redirected to Shielding 115 | . . . . . . . 115 Regen/Repaired (Parts) 614 | . . . . 210 . 404 . Core Remaining (%) 67 | 100 64 . 80 . . 27 . Volleys Fired 86 | 22 12 31 . 6 . 11 4 Largest 2 | 2 1 1 . 1 . 1 1 Hottest 50 | 40 40 45 . 50 . 45 36 Shots Fired 108 | 44 12 31 . 6 . 11 4 Gun 90 | 44 12 26 . 6 . 2 . Cannon . | . . . . . . . . Launcher 18 | . . 5 . . . 9 4 Special . | . . . . . . . . Kinetic 51 | 44 7 . . . . . . Thermal . | . . . . . . . . Explosive . | . . . . . . . . Electromagnetic 57 | . 5 31 . 6 . 11 4 Robot Hit Streak 17 | 5 5 17 . 4 . 13 16 Robot Miss Streak 3 | 3 2 3 . 3 . . 1 Penetration Max . | . . . . . . . . Secondary Targets . | . . . . . . . . Shots Hit Robots 289 | 27 37 37 1 55 25 68 39 Core Hits 142 | 12 8 24 . 18 13 37 30 Critical Kills 2 | . . . . 2 . . . Critical Parts Destroyed 11 | . 4 2 . 5 . . . Critical Strikes 25 | . 4 2 . 9 2 8 . Smash 13 | . 4 2 . 7 . . . Sever 12 | . . . . 2 2 8 . Melee Attacks 336 | . 43 28 2 77 46 92 48 Impact 94 | . 30 28 2 34 . . . Slashing 219 | . . . . 43 46 92 38 Piercing . | . . . . . . . . Sneak Attacks 66 | . 15 4 1 16 . 14 16 Combat Hostiles . | . . . . . . . . Follow-up Attacks 15 | . . . . . 7 6 2 Damage Inflicted 9937 | 261 634 1156 72 2209 799 3286 1520 Guns 791 | 261 79 380 . 60 . 11 . Cannons . | . . . . . . . . Explosions 1492 | . . 372 . 87 . 580 453 Melee 7654 | . 555 404 72 2062 799 2695 1067 Ramming . | . . . . . . . . Kinetic 297 | 261 36 . . . . . . Thermal 376 | . . 142 . 87 . 147 . Explosive 61 | . . 61 . . . . . Electromagnetic 1549 | . 43 549 . 60 . 444 453 Impact 1685 | . 555 404 72 654 . . . Slashing 5969 | . . . . 1408 799 2695 1067 Piercing . | . . . . . . . . Highest Corruption 11 | . . 1 1 . . 5 11 Average Corruption 3 | . . 1 1 . . 3 3 Corruption Purged . | . . . . . . . . Corruption Blocked . | . . . . . . . . Effects 57 | . . . 2 . . 41 14 Message Errors 13 | . . . . . . 8 5 Matter Fused 15 | . . . 1 . . 10 4 Heat Flow Errors 4 | . . . . . . 3 1 Energy Discharges 9 | . . . . . . 5 4 Parts Rejected 1 | . . . . . . 1 . Parts Fused 1 | . . . . . . 1 . Data Loss (minor) 9 | . . . 1 . . 8 . Data Loss (major) 5 | . . . . . . 5 . Overload Shots . | . . . . . . . . Overflow Damage 1067 | . 129 70 50 382 . 345 91 Projectiles . | . . . . . . . . Explosions 26 | . . 4 . . . 5 17 Melee 1041 | . 129 66 50 382 . 340 74 Knockbacks 4 | . . 1 1 2 . . . Impact 4 | . . 1 1 2 . . . Kinetic . | . . . . . . . . Secondary . | . . . . . . . . Self-Inflicted Damage 310 | . . 53 . . . 186 71 Shots 18 | . . 4 . . . 10 4 Rammed 1 | . . . . . . 1 . Targets Rammed 1 | . . . . . . 1 . Kicked . | . . . . . . . . Crushed . | . . . . . . . . Highest Temperature 253 | . . 27 . 12 1 253 220 Average Temperature 60 | . . 8 . 6 1 88 67 Received Heat Transfer 2058 | . 174 114 . 369 189 693 519 Siege Activations . | . . . . . . . . Martial Activations . | . . . . . . . . Shielding Activations . | . . . . . . . . Robots Disrupted . | . . . . . . . . Combat Hostiles . | . . . . . . . . Robots Corrupted 9 | . 4 1 1 3 . . . Combat Hostiles 6 | . 3 1 . 2 . . . Parts Fried 20 | . 7 3 2 7 . 1 . Impact Corruptions 19 | . 7 3 2 7 . . . Robots Melted . | . . . . . . . . Combat Hostiles . | . . . . . . . . Parts Melted 1 | . . . . 1 . . . Heat Transferred 450 | . . 150 . 100 . 200 . Parts Sabotaged . | . . . . . . . . Parts Stolen . | . . . . . . . . Parts Stripped . | . . . . . . . . Power Chain Reactions 9 | . . 4 . 1 . 4 . Alert | -11 -10 -9 -9 -8 -8 -8 -7 ------- Run | Yrd Mat Mat Min Mat Gar Mat Fac Maximum Alert Level 2 | . . . . . 2 1 . Low Security (%) 92 | 100 100 100 100 100 31 79 100 Level 1 7 | . . . . . 63 20 . Level 2 . | . . . . . 4 . . Level 3 . | . . . . . . . . Level 4 . | . . . . . . . . Level 5 . | . . . . . . . . High Security . | . . . . . . . . Max Security . | . . . . . . . . Peak Influence 418 | 15 117 170 65 100 418 359 161 Initial 203 | . . 41 65 . 65 203 161 Average 53 | 2 16 7 9 29 256 131 60 Influence Increases 2666 | 35 283 320 6 452 353 857 360 Destroy 0b10 Robot/C 1500 | . 200 160 . 280 240 460 160 Destroy 0b10 Robot/NC 230 | 35 15 30 5 45 . 75 25 Destroy Leader 368 | . 34 48 . 86 10 150 40 Successful Hack 78 | . 16 30 . 14 . 6 12 Disable Machine 120 | . 15 30 . 15 . 45 15 Anti-Garrison Action 100 | . . . . . 100 . . Destroy Structure 60 | . 3 22 1 12 3 16 3 Partial Spotted 15 | . . . . . . 15 . Lose Combat Pursuer 195 | . . . . . . 90 105 Influence Decreases 2573 | 35 184 250 175 352 35 921 621 Entered New Map 605 | . . 58 104 . 35 215 193 Time Decay 1825 | 35 166 192 71 332 . 656 373 Lost Part 143 | . 18 . . 20 . 50 55 Squads Dispatched 19 | . 4 1 . 4 . 5 5 Investigation 9 | . 4 . . 3 . 1 1 Extermination 2 | . . . . . . . 2 Reinforcement 7 | . . 1 . 1 . 4 1 Assault . | . . . . . . . . Garrison 1 | . . . . . . . 1 Intercept . | . . . . . . . . Searches Triggered . | . . . . . . . . Construction Impeded 2 | . . . . . . 1 1 Haulers Reinforced . | . . . . . . . . Active Scanning Responses . | . . . . . . . . Cargo Convoy Interrupts 1 | . . . . . . . 1 Stealth | -11 -10 -9 -9 -8 -8 -8 -7 --------- Run | Yrd Mat Mat Min Mat Gar Mat Fac Distress Signals 10 | . 1 1 . 3 . 5 . Communications Jammed . | . . . . . . . . Distress Signals . | . . . . . . . . Times Spotted 148 | . 11 18 . 28 12 42 37 Peak Tracking Total 14 | . 3 3 . 6 3 5 14 Tactical Retreats 23 | . . . . 5 . 16 2 ECM-based Alert Blocks 24 | . . . . 8 . 16 . Traps | -11 -10 -9 -9 -8 -8 -8 -7 ------- Run | Yrd Mat Mat Min Mat Gar Mat Fac Traps Triggered 6 | . 1 . . . 2 . 3 Indirectly . | . . . . . . . . Trap Hack Attempts . | . . . . . . . . Triggered . | . . . . . . . . Disarmed . | . . . . . . . . Reprogrammed . | . . . . . . . . Reused . | . . . . . . . . Traps Extracted . | . . . . . . . . Installed . | . . . . . . . . Triggered . | . . . . . . . . Machines | -11 -10 -9 -9 -8 -8 -8 -7 ---------- Run | Yrd Mat Mat Min Mat Gar Mat Fac Machines Disabled 10 | . 1 2 . 1 2 3 1 Max in Single Turn 1 | . 1 1 . 1 1 1 1 Garrison Relay 2 | . . . . . 2 . . Machines Repaired . | . . . . . . . . Machines Dismantled . | . . . . . . . . Machines Sabotaged . | . . . . . . . . Overloaded Fab Kills . | . . . . . . . . Hacking | -11 -10 -9 -9 -8 -8 -8 -7 --------- Run | Yrd Mat Mat Min Mat Gar Mat Fac Machines Accessed 25 | . 3 7 . 8 . 5 2 Terminals 14 | . 3 5 . 4 . 2 . Fabricators 1 | . . . . . . . 1 Repair Stations 5 | . . . . 2 . 2 1 Recycling Units . | . . . . . . . . Scanalyzers 4 | . . 2 . 1 . 1 . Garrison Access 1 | . . . . 1 . . . Total Hacks 78 | . 12 29 . 20 . 12 5 Successful 45 | . 2 23 . 10 . 8 2 Failed 32 | . 10 6 . 9 . 4 3 Catastrophic 4 | . 2 . . 1 . 1 . Database Lockouts 1 | . . . . 1 . . . Manual 27 | . 9 11 . 5 . 2 . Terminals 37 | . 12 13 . 9 . 3 . Fabricators 3 | . . . . . . . 3 Repair Stations 11 | . . . . 5 . 4 2 Recycling Units . | . . . . . . . . Scanalyzers 26 | . . 16 . 5 . 5 . Garrison Access 1 | . . . . 1 . . . Terminal Hacks 6 | . 1 3 . 1 . 1 . Record 2 | . . . . 1 . 1 . Robot Analysis 1 | . . 1 . . . . . Terminal Index 1 | . . 1 . . . . . Zone Layout 2 | . 1 1 . . . . . Fabricator Hacks 1 | . . . . . . . 1 Load Schematic 1 | . . . . . . . 1 Repair Station Hacks 9 | . . . . 4 . 4 1 Scan Component 5 | . . . . 2 . 2 1 Repair 4 | . . . . 2 . 2 . Recycling Unit Hacks . | . . . . . . . . Scanalyzer 22 | . . 16 . 3 . 3 . Insert Component 8 | . . 6 . 1 . 1 . Analyze 9 | . . 6 . 1 . 2 . Retrieve Study 5 | . . 4 . 1 . . . Garrison Access Hacks 1 | . . . . 1 . . . Unlock Access 1 | . . . . 1 . . . Unauthorized Hacks 6 | . 1 4 . 1 . . . Terminals 6 | . 1 4 . 1 . . . Track 2 | . . 1 . 1 . . . Botnet 2 | . . 2 . . . . . Operators 2 | . 1 1 . . . . . Fabricators . | . . . . . . . . Repair Stations . | . . . . . . . . Recycling Units . | . . . . . . . . Scanalyzers . | . . . . . . . . Garrison Access . | . . . . . . . . Data Cores Recovered . | . . . . . . . . Used . | . . . . . . . . Hacking Detections 24 | . 3 7 . 7 . 5 2 Full Trace Events 5 | . 1 . . 2 . 1 1 Feedback Events . | . . . . . . . . Feedback Blocked . | . . . . . . . . Robot Schematics Acquired . | . . . . . . . . Robots Built . | . . . . . . . . Authchips . | . . . . . . . . Time . | . . . . . . . . Total Robot Build Rating . | . . . . . . . . Part Schematics Acquired 8 | . . 6 . 1 . 1 . Parts Built . | . . . . . . . . Authchips . | . . . . . . . . Time . | . . . . . . . . Total Part Build Rating . | . . . . . . . . Part Studies Acquired 5 | . . 4 . 1 . . . Parts Repaired 4 | . . . . 2 . 2 . Time 177 | . . . . 95 . 82 . Parts Recycled . | . . . . . . . . Recycled Matter . | . . . . . . . . Retrieved Matter . | . . . . . . . . Retrieved Components . | . . . . . . . . Parts Scanalyzed 8 | . . 6 . 1 . 1 . Part Schematics Acquired 8 | . . 6 . 1 . 1 . Parts Damaged . | . . . . . . . . Bothacking | -11 -10 -9 -9 -8 -8 -8 -7 ------------ Run | Yrd Mat Mat Min Mat Gar Mat Fac Used RIF Installer 1 | . . . . . 1 . . Robots Hacked 11 | . 4 . . . . . 7 Non-combat 11 | . 4 . . . . . 7 Combat . | . . . . . . . . Robot Hacks Applied 17 | . 7 . . . . . 10 parse_system 3 | . 2 . . . . . 1 no_distress 6 | . 3 . . . . . 3 find_chute 4 | . . . . . . . 4 find_fabricator 1 | . . . . . . . 1 find_recycling 1 | . 1 . . . . . . find_station 2 | . 1 . . . . . 1 Relay Couplers Released 7 | . . . . . 7 . . Machine Destruction 7 | . . . . . 7 . . Fabnet Peak Effective % . | . . . . . . . . Robots Rewired . | . . . . . . . . Allies Hacked . | . . . . . . . . Hacks Repelled . | . . . . . . . . Allies | -11 -10 -9 -9 -8 -8 -8 -7 -------- Run | Yrd Mat Mat Min Mat Gar Mat Fac Total Allies . | . . . . . . . . Largest Group . | . . . . . . . . Highest-Rated Group . | . . . . . . . . Highest-Rated Ally . | . . . . . . . . Total Orders . | . . . . . . . . Ally Attacks . | . . . . . . . . Total Damage . | . . . . . . . . Kills . | . . . . . . . . Allies Corrupted . | . . . . . . . . Allies Melted . | . . . . . . . . Intel | -11 -10 -9 -9 -8 -8 -8 -7 ------- Run | Yrd Mat Mat Min Mat Gar Mat Fac Active Infowar (turns) 13453 | 112 2266 3368 506 3099 722 2442 938 Sensors 9472 | . 1284 3342 . 1798 8 2102 938 Terrain 1433 | . . . 506 927 . . . Seismic 9454 | 112 982 3368 506 2991 722 773 . T.N.C. 3 | . . . . 3 . . . ECM 5859 | . . . . 3098 11 1903 847 Robot Analysis Total 1 | . . 1 . . . . . Derelict Logs Recovered 1 | . . . 1 . . . . Drone Launches . | . . . . . . . . Drone Recoveries . | . . . . . . . . Exploration | -11 -10 -9 -9 -8 -8 -8 -7 ------------- Run | Yrd Mat Mat Min Mat Gar Mat Fac Turns Passed 13744 | 195 2359 3368 506 3099 722 2442 1053 Spaces Moved 5701 | 97 734 1445 274 1027 452 1029 643 Core 96 | 1 . . . 1 . . 94 Treads 21 | 21 . . . . . . . Legs . | . . . . . . . . Wheels 5584 | 75 734 1445 274 1026 452 1029 549 Hover . | . . . . . . . . Flight . | . . . . . . . . Fastest Speed 50 | 50 100 105 135 100 130 130 50 Average Speed 124 | 112 113 125 135 123 130 132 119 Slowest Speed 950 | 160 115 135 135 950 130 150 150 Overloaded Moves . | . . . . . . . . Propulsion Burnouts . | . . . . . . . . Robots Hopped . | . . . . . . . . Potential Cave-ins . | . . . . . . . . Cave-ins Triggered . | . . . . . . . . Exploration Rate (%) 47 | 4 73 53 61 65 45 66 13 Regions Visited 7 Branch Regions 1 Pre-discovered Areas . | . . . . . . . . Known Exits Taken 1 | . . . . 1 . . . Unknown Exits Taken 5 | 1 1 1 1 . . 1 . Scrap Searched 1 | . . . 1 . . . . Spaces Dug 42 | . 3 10 1 9 3 13 3 Terrain Destroyed 65 | . 3 27 1 12 3 16 3 Melee 42 | . 3 10 1 9 3 13 3 Projectile . | . . . . . . . . AOE 23 | . . 17 . 3 . 3 . Terrain Rammed . | . . . . . . . . Walls Destroyed . | . . . . . . . . Machines Disabled . | . . . . . . . . Actions | -11 -10 -9 -9 -8 -8 -8 -7 --------- Run | Yrd Mat Mat Min Mat Gar Mat Fac Total 11786 | 140 2194 2924 407 2735 536 1979 871 Wait 5360 | 5 1366 1367 124 1556 10 803 129 Move 5693 | 96 733 1444 273 1026 450 1028 643 Hop . | . . . . . . . . Pick Up 94 | 9 18 19 3 19 7 11 8 Fast Attach 20 | 7 . 1 . 8 . 3 1 Attach 25 | . 2 2 . 7 . 5 9 Detach 3 | . . . . 2 . 1 . Swap 82 | . 8 16 2 11 7 19 19 Drop 99 | 1 12 16 3 26 11 15 15 Fire 86 | 22 12 31 . 6 . 11 4 Melee 307 | . 43 28 2 74 35 82 43 Ram . | . . . . . . . . Kick . | . . . . . . . . Crush 1 | . . . . . . 1 . Escape Stasis 16 | . . . . . 16 . . Rewire . | . . . . . . . . Trap . | . . . . . . . . Miscellaneous . | . . . . . . . . Route ------- -11/Scrapyard -10/Materials (discovered 2 exits: *Mat / [*Min]) -9/Materials (discovered 3 exits: *Mat / [*Min] / [*Sto]) -9/Mines (discovered 2 exits: *Mat x2) -8/Materials (discovered 2 exits: *Fac / Gar) -8/Garrison (discovered 2 exits: *Mat x2) -8/Materials -7/Factory (discovered 1 exit: [*Fac]) History --------- Turn | Location | Event 11 | -11/Scrapyard | Discovered new exit (range 16) 196 | -11/Scrapyard | Entered Materials 197 | -10/Materials | Met a group of wandering Federalists 311 | -10/Materials | Build established: Mutant 723 | -10/Materials | Discovered new exit (range 12) 746 | -10/Materials | Discovered new exit (range 19) 2555 | -10/Materials | Entered another Materials area 2555 | -9/Materials | Evolved 2 slots: Propulsion x1, Utility x1 3881 | -9/Materials | Discovered new exit (range 3) 3895 | -9/Materials | Discovered new exit (range 16) 5906 | -9/Materials | Discovered new exit (range 11) 5923 | -9/Materials | Entered Mines 5963 | -9/Mines | Learned Materials stockpile data 6235 | -9/Mines | Build established: Scavenger-Mutant 6309 | -9/Mines | Discovered new exit (range 6) 6393 | -9/Mines | Discovered new exit (range 10) 6429 | -9/Mines | Entered Materials 6429 | -8/Materials | Evolved 2 slots: Propulsion x1, Utility x1 6902 | -8/Materials | Build established: Mutant 7812 | -8/Materials | Central database locked down 8665 | -8/Materials | Lost 4 parts (1p2u1w) 9077 | -8/Materials | Repaired Arm. Huge Wheel 9412 | -8/Materials | Discovered new exit (range 14) 9495 | -8/Materials | Repaired Imp. EM Shotgun 9527 | -8/Materials | Identified exit to Garrison 9528 | -8/Materials | Entered Garrison 9552 | -8/Garrison | Triggered checkpoint 9652 | -8/Garrison | Triggered checkpoint 9696 | -8/Garrison | Garrison Relay disabled 9744 | -8/Garrison | Triggered checkpoint 9843 | -8/Garrison | Garrison Relay disabled 9874 | -8/Garrison | Triggered checkpoint 9876 | -8/Garrison | Discovered new exit (range 15) 9966 | -8/Garrison | Triggered checkpoint 10153 | -8/Garrison | Installed Relay Interface Framework 10218 | -8/Garrison | Discovered new exit (range 11) 10250 | -8/Garrison | Entered Materials 11724 | -8/Materials | Core integrity fell below 50% 11784 | -8/Materials | Repaired Arm. Huge Wheel 12264 | -8/Materials | Discovered new exit (range 4) 12315 | -8/Materials | Repaired Hrd. Medium Armor Plating 12692 | -8/Materials | Entered Factory 12692 | -7/Factory | Evolved 2 slots: Power x1, Utility x1 12994 | -7/Factory | Build established: Scavenger-Mutant 13642 | -7/Factory | Cargo convoy interrupted 13660 | -7/Factory | Garrison activated, responded to threat 13681 | -7/Factory | Core integrity fell below 50% 13681 | -7/Factory | Released all parts (5) 13697 | -7/Factory | Discovered new exit (range 16) 13711 | -7/Factory | Lost 14 parts (3p6n3u2w) 13727 | -7/Factory | Core integrity fell below 20% 13744 | -7/Factory | System corruption reached 10% 13745 | -7/Factory | Destroyed by P-60 Hacker with Shock Rifle Last Messages --------------- 13680_ Com. Wheel+ destroyed. 13681_ Released Hacking Suite. 13681_ Released Chainsword. 13681_ Released Hcp. Storage Unit. 13681_ Released Imp. Utility Shielding. 13681_ Released Imp. Deuterium Engine. 13697_ EXIT=FOUND 13699_ Connecting with DSF Access... 13715_ QVQTAYVI5 ENWBX #